{"text_format":"1","workbook":"xlsx","n_sheets":2,"sheets":["Grunnur","Dags."],"not_rendered":{"charts":0,"images":0,"macros":1,"external_links":0,"defined_names":3,"comments":0,"pivot_tables":0},"unopened":[],"bounds":{"document_bytes":16777216,"sheet_cells":100000,"rows_first":2000,"rows_last":500,"rows_between":2000,"halvings":0,"cell_chars":16384,"cell_head_chars":4096},"cells_cut":0,"cells_raw":0,"read":"whole","date_system":"1900"}

{"sheet":"Grunnur","index":0,"n_rows":154,"n_cols":6,"rows_kept":154,"cut":false,"hidden":false,"merged":[[0,0,0,5]]}
["Hæstaréttarmálið nr. 544/2012:\n\nJóhann Reynisson\ngegn\nVátryggingarfélagi Íslands hf.\nog Ingimundi Gíslasyni"]
["Kafli 1",null,"Skjöl í framlagningarröð í héraði"]
[]
["Urskj.","Dags.",null,null,null,"Bls."]
[1,"2013-09-30","Héraðsdómsstefna.",1,14,{"$f":"IF(E5=\"\",D5,D5&\"-\"&E5)","v":"1-14"}]
[2,null,"Skjalaskrá.",15,16,{"$f":"IF(E6=\"\",D6,D6&\"-\"&E6)","v":"15-16"}]
[3,"2007-04-16","Lánasamningur  - Fylgigskjöl dags. 27.04.2007,  03.05.2007, 15.05.2007.",86,96,"86-96"]
[4,"2007-05-08","Viðauki við Lánasamning 0358-35-5042.",136,null,136]
[5,"2007-04-30","Kaupnótur, dags. 03.05.2007,  23.05.2007,  27.04.2007,  03.05.2007,  yfirlit yfir færslur á gjaldeirisreikn. stefnda 16.04.2007 - 15.04.2009.",129,135,"129-135"]
[6,"2007-04-16","Handveðsyfirlýsing nr. 0358-63-953.",97,99,"97-99"]
[7,"2008-04-25","Handveðsyfirlýsing nr. 0358-63-1149.",150,153,"150-153"]
[8,"2008-05-14","Viðauki við handveðsyfirlýsingu nr 0358-63-953.",154,null,154]
[9,"2008-10-03","Viðauki við handveðsyfirlýsingu nr 0358-63-953.",221,null,221]
[10,"2008-10-03","Viðauki við Lánasamning 0358-35-5042.",222,null,222]
[11,"2008-10-09","Tölvupóstur stefnda.",223,null,223]
[12,"2008-10-10","Tölvupóstur stefnda.",226,227,"226-227"]
[13,"2009-07-25","Tölvupóstur stefnanda.",238,null,238]
[14,"2009-12-01","Kröfulýsing stefnda vegna USD skuldabréfakröfunnar.",240,244,"240-244"]
[15,"2009-12-01","Kröfulýsing stefnda vegna EUR skuldabréfakrafnanna og fundargerð 624. og 631. kröfuhafafundar Kaupþings 14. júlí 2011 og 9. ágúst 2011.",245,257,"245-257"]
[16,"2010-04-30","Afstöðubréf stefnanda vegna USD skuldabréfakröfunnar.",263,264,"263-264"]
[17,"2010-11-16","Afstöðubréf stefnanda vegna EUR skuldabréfakrafanna.",273,null,273]
[18,"2006-03-27","\"USD 10,000,000 Senior / Subordinated Medium-Term Note Program\" ásamt viðauka dags. 21.09.2006 (\"útgáfulýsingin\") ásamt þýðingu.","Sleppt",null,"Sleppt"]
[19,"2006-04-12","\"Senior Indenture\" ásamt þýðingu.","Sleppt",null,"Sleppt"]
[20,"2006-10-04","\"Second supplimental Indenture\" ásamt þýðingu.","Sleppt",null,"Sleppt"]
[21,"2006-10-04","S\"Series C Senior Floating Rate Note\" ásamt þýðingu.","Sleppt",null,"Sleppt"]
[22,"2011-10-12","Dómur Hæstaréttar í málinu nr.398/2011 ásam lýsingu á bandarískum lögum.","Sleppt",null,"Sleppt"]
[23,"2011-10-17","Bréf Arion Banka hf til stefnda.",286,null,286]
[24,"2012-05-18","Innheimtuviðvörun stefnanda.",299,300,"299-300"]
[25,"2012-05-23","Tölvupóstar stefnda 23. maí, 24. maí og 31. maí 2012.",301,304,"301-304"]
[26,"2012-06-19","Lögbannsbeiðni stefnda.",346,350,"346-350"]
[27,"2012-08-21","Tilkynning stefnanda um innheimturástafanir 5. og 29. júní 2012 og kvittanir vegna þeirra.",372,378,"372-378"]
[28,"2012-08-24","Tölvupóstur stefnda.",379,380,"379-380"]
[29,"2012-08-30","Tölvupóstur stefnda.",384,null,384]
[30,"2012-09-11","Kröfulýsing stefnda.",385,387,"385-387"]
[31,"2012-12-17","Bréf stefnanda í tilefni af kröfulýsingu stefnda.",396,null,396]
[32,"2012-06-02","Yfilit yfir markaðsverð krafna frá Yorvik dags 2. júní og 21 júní.","Sleppt",null,"Sleppt"]
[33,"2008-09-03","Ársreikningar stefnda fyrir árin 2007-2011.",156,215,"156-215"]
[34,"2010-04-15","Yfrlit yfir stöðu lánsins á gjaldaga.",260,262,"260-262"]
[35,"2010-04-13","Yfirlit yfir LIBOR-vexti.",259,null,259]
[36,"2014-01-23","Greinagerð stefnda í málinu nr. 4091/2013.",17,54,"17-54"]
[37,null,"Skjalaskrá.",null,null,0]
[38,"2007-03-29","Hlutafélagaskrá - forsvaramenn stefnda.",76,null,76]
[39,"2007-04-11","Bókanir lánanefnda Kaupþings banka hf. um stefnda Sund ehf. o.fl. 11.04. og 12.04. 2007.",77,78,"77-78"]
[40,"2007-04-12","Bréf Kaupþings banka hf. um lán til stefnda kr. 1.000.000.000.",79,80,"79-80"]
[41,"2007-04-13","Lánasamþykkt Kaupþings banka hf. kr. 1.000.000.000 - Reibor/Libor.",84,null,84]
[42,"2007-04-26","Hluti þerra kaupsamninga/kaupnóta þar sem Kaupþing seldi stefnda hlutabréf milliliðalaust.",114,128,"114-128"]
[43,"2008-02-22","Bréf Kaupþings banka hf. - Huldu Pétursdóttir - um íslenskt bankabréf í EUR og USD.",147,148,"147-148"]
[44,"2008-04-21","Yfirlýsing Halldórs H. Jónssonar vegna kaupa stefnda á skuldabréfum 21 - 24 apríl 2008.",149,null,149]
[45,"2013-03-25","Kvittanir vegna kaupa stefnda á skuldabréfum ásamt bls. 1 í bréfi stefnanda.",406,413,"406-413"]
[46,"2008-10-09","Skuldajöfnun stefnda og Kaupþings banka hf. - Yfirlit.",224,null,224]
[47,"2008-10-09","Staða lánasamnings nr. 0358-35-5042 - Yfirlit.",225,null,225]
[48,null,"Viðauki 6 við saming: \"Total exposure\" (ISK); 3.072 m.kr. \"transfer price (ISK): 1.064 m.kr. \".",1146,null,1146]
[49,"2009-03-16","Bréf rekstrafélags Kaupþings banka hf. um greiðslu 58,7% af virði sjóðsins.",234,null,234]
[50,"2009-04-15","Kvittun Arion banka hf. fyrir greðslu af lánasamningi - kr. 100.844.072.",235,237,"235-237"]
[51,"2009-12-09","Bréf Arion banka hf. vegna blocking númer fyrir skuldabréf stefnda.",258,null,258]
[52,"2010-08-18","Neitun Arion banka hf. um útdrátt út tveim fundargerðum lánanefndar.",270,271,"270-271"]
[53,"2010-08-23","Neitum stefnanda um útdrátt úr tveim fundargerðum lánanefndar. ",272,null,272]
[54,"2011-12-09","Bréf til stefnanda með kröfu um málsmeðferð ef lán er ekki staðfest greitt.",292,null,292]
[55,"2012-01-25","Ítrekunarbréf til stefnanda um staðfestingu fullgreiðslu láns eða málaferli.",294,null,294]
[56,"2012-01-12","Bréf til stefnanda með beiðni um öll gögn varðandi sölu skuldabréfa USD og EUR .",293,null,293]
[57,"2012-03-29","Kæra til sérstaks saksóknara um rannsókn á sölumeðferð skuldabréfa.",295,298,"295-298"]
[58,"2012-05-24","Bréf fjármálaeftirlitsins um fyrirspurn um starfsleyfi stefnanda.",305,null,305]
[59,"2012-05-31","Svar Fjármálaeftirlitsins um afturköllun starfsleyfis 19.07.2011",306,null,306]
[60,"2012-05-31","Bréf stefnanda til Arion banka hf. með sérstökum mótmælum og aðvörun.",307,null,307]
[61,"2012-06-07","Bréf stefnanda með mótmælum vegna framsals Arion banka hf. á vörslusöfnum.",338,340,"338-340"]
[62,"2012-06-25","Endurrit úr gerðarbók sýslumanns vegna fyrirtöku máls á Kaupþing hf.",351,352,"351-352"]
[63,"2012-07-27","Ítrekun til Arion banka hf. um að fá send öll skjöl o.fl.",370,371,"370-371"]
[64,"2012-06-28","Endurrit úr gerðarbók sýslumanns þar sem lögbanni á stefnanda er hafnað.",354,355,"354-355"]
[65,"2012-06-28","Stefnandi hættir við málshöfðun á stefnda vegna peningamarkaðsinnlána.",356,null,356]
[66,"2012-06-29","Lögbannsbeiðni gegn Arion banka hf. ",359,null,{"$f":"IF(E70=\"\",D70,D70&\"-\"&E70)","v":359}]
[67,"2012-07-06","Endurrit úr gerðarbók sýslumanns þar sem lögbanni á Arion banka hf. er hafnað.",364,365,"364-365"]
[68,"2012-07-25","Kæra á ákvörðun sérstaks saksóknara vegna söæumeðferðar skuldabréfa.",366,367,"366-367"]
[69,"2012-07-26","Bréf stefnanda til Árna Ármannsonar hrl.",368,369,"368-369"]
[70,"2012-08-24","Afstaða rískissaksóknara til kæru varðandi sölumeðferð skuldabréfa.",381,383,"381-383"]
[71,"2008-08-15","Yfirlit Kaupþings banka hf. síða nr. 1 um verðbréfaeign stefnda.",155,null,155]
[72,"2012-06-11","Yfirlit Arion banka hf. - verðbréfaeign sunduliðun 31.12.2011.",341,null,341]
[73,"2012-06-28","Yfirlit Arion banka hf. - hreyfingar 01.01.2007 - 28.06.2012 - skuldabréf í EUR og USD.",357,null,357]
[74,"2012-06-25","Yfirlit Arion banka hf. um innlánareikning 0301-22-000414 útprentun 25.06.2012.",353,null,353]
[75,"2012-06-28","Yfirlit Arion Banka hf. - vörsluyfirlit 01.01.2012 útprentun 28.06.2012",358,null,358]
[76,"2011-10-10","Bréf stefnda til Arion banka hf. með beiðni um gögn.",285,null,285]
[77,"2012-10-25","Beiðni um opinbera rannsókn sérstaks saksóknara vegna gruns um refsivert athæfi slitastjórnar.",388,395,"388-395"]
[78,"2013-01-25","Bréf Arion banka hf. til stefnda - tilkynnt flokkun - fagfjárfestir.",397,399,"397-399"]
[79,"2013-02-08","Bréf stefnanda til Arion banka hf. þar sem mótmælt er skráningu - fagfjárfestir.",400,null,400]
[80,"2013-04-23","Bréf stefnda til stefnanda.",414,null,414]
[81,"2013-06-05","Bréf stefnda til stefnanda.",415,null,415]
[82,"2013-06-05","Bréf stefnda til stefnanda með beiðni um gögn.",416,null,416]
[83,"2013-06-27","Bréf regluvarðar til Arion banka hf. til stefnda með fylgipósti.",417,419,"417-419"]
[84,"2014-01-28","Skýrsla Rannsóknarnefndar Alþingis 2. hefti bls. 178 og 179.",499,501,"499-501"]
[85,"2014-01-28","Skýrsla Rannsóknarnefndar Alþingis 4. hefti bls. 27 - 35.",502,511,"502-511"]
[86,"2014-01-28","Skýrsla Rannsóknarnefndar Alþingis 4. hefti bls. 112 og 113.",512,514,"512-514"]
[87,"2014-01-28","Skýrsla Rannsóknarnefndar Alþingis 7. hefti bls. 258.",515,516,"515-516"]
[88,"2014-01-28","Augu Lýru - skáldsaga - Eva Joly og Eva Perrignon bls. 55.",517,518,"517-518"]
[89,"2006-10-27","Lánssamningur  Rekstrarvara ehf. og Kaupþings banka hf. - beiðni um útborgun - kaupnóta.",65,75,"65-75"]
[90,"2007-09-27","Lánssamningur  Rekstrarhúsa ehf. og Kaupþings banka hf. -  beiðni um útborgun - kaupnóta.",137,146,"137-146"]
[91,"2011-11-02","Rekstrarvörur ehf. og Arion banki hf. - endurreikningur - lán 4026 og 6175 til lækkunar.",287,291,"287-291"]
[92,"2011-08-30","Bréf Landsbankanns um lækkun eftirstöðva viðskiptavinar um 55,37%.",284,null,284]
[93,"2006-10-04","Upplýsingar um vexti skuldabréfa á Kaupþing banka hf. \"Floating Rates Notes\".",58,64,"58-64"]
[94,"2013-07-09","Bréf stefnanda til stefnda.",420,null,420]
[95,"2013-08-14","Bréf stefnda til ríkissaksóknara.",421,null,421]
[96,"2013-09-11","Afstaða rískissaksóknara til kæru vegna úttekta af bankareikningum.",422,427,"422-427"]
[97,"2013-09-30","Skoðun Deloitte á gögnum tilheyrandi lántöku stefnda í apríl og maí 2007",428,486,"428-486"]
[98,"2013-10-01","Kröfulýsing stefnda á stefnanda - viðauki með skjalaskrá.",487,491,"487-491"]
[99,"2013-10-03","Bréf stefnda til Andra Andrasonar lögfr.",492,null,492]
[100,"2013-10-04","Bréf stefnda til stefnanda - krafa um málsmeðferð.",493,null,493]
[101,"2013-10-09","Bréf stefnda til stefnanda - réttaráhrif formlegra mótmæla.",494,null,494]
[102,"2008-09-15","Skilagreinar vegna vaxta af skuldabréfum í EUR og USD 25.05.2008",216,220,"216-220"]
[103,"2004-12-17","Útgáfulýsing (Offering Circular) skuldabréfaútgáfu Kaupþings banka hf. EUR 8.000.000.000.","Sleppt",null,"Sleppt"]
[104,"2013-11-12","Fundargerð 882. kröfuhafafundar stefnanda.",495,497,"495-497"]
[105,"2013-11-22","Bréf stefnanda.",498,null,498]
[106,"2014-04-23","Bréf stefnanda um beiðni um gögn.",519,527,"519-527"]
[107,"2014-05-05","Krafa stefnda um frestun máls.",528,null,528]
[108,"2014-08-04","Bókun stefnanda.",529,530,"529-530"]
[109,"2007-04-16","Yfirlit yfir greiðsluflæði láns samkvæmt lánasamningi.",100,null,100]
[110,"2013-02-12","Tölvupóstsamskipti dags. 12.02, 29.04 og 02.06.2013",401,405,"401-405"]
[111,"2014-09-25","Skýrsla PWC um stöðu lánasamnings.",531,561,"531-561"]
[112,"2006-06-29","Reglur Kaupþings Liquidity Fund EUR.",55,57,"55-57"]
[113,null,"Gögn tengd vaxtagreiðslum vegna USD skuldabréfakröfunnar.","Sleppt",null,"Sleppt"]
[114,"2014-09-25","Greinagerð stefnanda í máli nr. X-158/2013.",262,589,"262-589"]
[115,"2015-06-26","Dómur Héraðsdóms í máli nr. S-206/2013.","Sleppt",null,"Sleppt"]
[116,"2015-10-23","Beiðni sérstaks saksóknara ásamt kæru FME dags. 01.10.2009",610,663,"610-663"]
[117,"2016-06-09","Úr skýrslu sérstaks saksóknanra vegna kæru FME.",715,767,"715-767"]
[118,"2015-02-12","Dómur Hæstaréttar í málinu nr. 145/2014.","Sleppt",null,"Sleppt"]
[119,"2015-10-29","Vitnaleiðslur í máli nr. X-158/2013.",664,670,"664-670"]
[120,"2016-06-09","Bókun stefnanda.",768,null,768]
[121,"2016-06-09","Hlutafélagaskrá.",769,770,"769-770"]
[122,"2016-04-29","Dómur hæstaréttar í máli nr. 225/2016.",671,714,"671-714"]
[123,"2009-07-25","Bréf slitastjórnar Kaupþings.",239,null,239]
[124,"2008-10-21","Ákvörðun FME um rástöfun eigna og skuldaKaupþings til nýja Kaupþings.",228,231,"228-231"]
[125,"2014-09-25","Þýðing á hluta dskj. nr 111",590,595,"590-595"]
[126,null,"Þýðing á dskj. nr. 113","Sleppt",null,"Sleppt"]
[127,"2008-10-21","Yfirlýsingar um framsal kröfuréttinda",232,233,{"$f":"IF(E131=\"\",D131,D131&\"-\"&E131)","v":"232-233"}]
[128,"2015-03-31","Yfirlit yfir færslur á bankareikningi",606,609,{"$f":"IF(E132=\"\",D132,D132&\"-\"&E132)","v":"606-609"}]
[129,"2012-06-05","Yfirlit yfr færslur á vörslusafni.",308,337,"308-337"]
[130,"2007-04-25","Yfirlit gjaldeyrisreikninga",101,113,"101-113"]
[131,"2011-06-30","Framsalssamningur, auk þýðingar",274,283,"274-283"]
[132,"2016-10-07","Skýrsla Deloitte ",1136,1139,"1136-1139"]
[133,"2014-12-09","Skýrsla Deloitte ",596,605,"596-605"]
[134,"2007-04-12","Þýðing á bókun lánanefndar um lán kr. 1.000.000.000",81,83,"81-83"]
[135,"2007-04-13","\"Lánasamþykkt\" Kaupþings banka, kr. 1.000.000.000, þar sem lánið fór í lánabók fyritækjasviðs",85,null,85]
[136,null,"Þýðing á bókunum Privarett II og Obligarionsretten, Almindelig del.","Sleppt",null,"Sleppt"]
[137,"2016-10-13","Bókun stefnda varðandi áskorun til stefnada um framlagningu gagna.",1140,null,1140]
[138,"2016-10-13","Bókun stefnda varðandi áskorun til stefnada um framlagningu gagna.",1141,null,1141]
[139,"2016-10-13","Bókun stefnda varðandi áskorun til stefnada um framlagningu gagna.",1142,null,1142]
[140,"2016-10-13","Bókun stefnda varðandi áskorun til stefnada um framlagningu gagna.",1143,null,1143]
[141,"2016-10-13","Bókun stefnda varðandi tilhögun málflutnings.",1144,null,1144]
[142,"2016-08-10","Bréf héraðssaksóknara ásamt gögnum úr máli Héraðsdóms Reykjavíkur í málinu nr. S-206/2013 ákæra ogfl.",771,1031,"771-1031"]
[143,"2012-06-18","Gögn úr máli Héraðsdóms Reykjavíkur nr. S-206/2013 fyrstu tvær blaðsíður varðandi fyrirtöku Ingólfs Helgasonar og Rúnars.",342,345,"342-345"]
[144,"2016-10-06","Hrd. nr. 498/2015 Ákæruvaldið gegn Hreiðari Má og fl.",1034,1135,"1034-1135"]
[145,"2016-08-16","Sýnishorn af bréfaskriftum vegna greiðsæu málskostnaðar í x-málinu",1032,1033,"1032-1033"]
[146,"2016-10-25","Bókun stefnanda.",1145,null,1145]
[147,"2010-08-05","Gögn úr máli nr. S-206/2013, símtal Einars Pálma Sigmundssonar og Halldórs Friðriks Þorsteinssonar.",265,269,"265-269"]
[148,null,"Þingbók",1147,1158,"1147-1158"]
[null,"2017-01-30","Skýrslutökur í máli E-4091/2013",1159,1162,"1159-1162"]
[null,"2017-02-24","Dómur Héraðsdóms í máli nr. E-4091/2013",1163,1188,"1163-1188"]

{"sheet":"Dags.","index":1,"n_rows":154,"n_cols":6,"rows_kept":154,"cut":false,"hidden":false,"merged":[[0,0,0,5]]}
["Hæstaréttarmálið nr. 544/2012:\n\nJóhann Reynisson\ngegn\nVátryggingarfélagi Íslands hf.\nog Ingimundi Gíslasyni"]
["Kafli 1",null,"Skjöl í framlagningarröð í héraði"]
[]
["Urskj.","Dags.","Texti",null,null,"Bls."]
[103,"2004-12-17","Útgáfulýsing (Offering Circular) skuldabréfaútgáfu Kaupþings banka hf. EUR 8.000.000.000.","Sleppt",null,{"$f":"IF(E5=\"\",D5,D5&\"-\"&E5)","v":"Sleppt"}]
[18,"2006-03-27","\"USD 10,000,000 Senior / Subordinated Medium-Term Note Program\" ásamt viðauka dags. 21.09.2006 (\"útgáfulýsingin\") ásamt þýðingu.","Sleppt",null,"Sleppt"]
[19,"2006-04-12","\"Senior Indenture\" ásamt þýðingu.","Sleppt",null,"Sleppt"]
[112,"2006-06-29","Reglur Kaupþings Liquidity Fund EUR.",55,57,"55-57"]
[93,"2006-10-04","Upplýsingar um vexti skuldabréfa á Kaupþing banka hf. \"Floating Rates Notes\".",58,64,"58-64"]
[20,"2006-10-04","\"Second supplimental Indenture\" ásamt þýðingu.","Sleppt",null,"Sleppt"]
[21,"2006-10-04","S\"Series C Senior Floating Rate Note\" ásamt þýðingu.","Sleppt",null,"Sleppt"]
[89,"2006-10-27","Lánssamningur  Rekstrarvara ehf. og Kaupþings banka hf. - beiðni um útborgun - kaupnóta.",65,75,"65-75"]
[38,"2007-03-29","Hlutafélagaskrá - forsvaramenn stefnda.",76,null,76]
[39,"2007-04-11","Bókanir lánanefnda Kaupþings banka hf. um stefnda Sund ehf. o.fl. 11.04. og 12.04. 2007.",77,78,"77-78"]
[40,"2007-04-12","Bréf Kaupþings banka hf. um lán til stefnda kr. 1.000.000.000.",79,80,"79-80"]
[134,"2007-04-12","Þýðing á bókun lánanefndar um lán kr. 1.000.000.000",81,83,"81-83"]
[41,"2007-04-13","Lánasamþykkt Kaupþings banka hf. kr. 1.000.000.000 - Reibor/Libor.",84,null,84]
[135,"2007-04-13","\"Lánasamþykkt\" Kaupþings banka, kr. 1.000.000.000, þar sem lánið fór í lánabók fyritækjasviðs",85,null,85]
[109,"2007-04-16","Yfirlit yfir greiðsluflæði láns samkvæmt lánasamningi.",100,null,100]
[3,"2007-04-16","Lánasamningur  - Fylgigskjöl dags. 27.04.2007,  03.05.2007, 15.05.2007.",86,96,"86-96"]
[6,"2007-04-16","Handveðsyfirlýsing nr. 0358-63-953.",97,99,"97-99"]
[130,"2007-04-25","Yfirlit gjaldeyrisreikninga",101,113,"101-113"]
[42,"2007-04-26","Hluti þerra kaupsamninga/kaupnóta þar sem Kaupþing seldi stefnda hlutabréf milliliðalaust.",114,128,"114-128"]
[5,"2007-04-30","Kaupnótur, dags. 03.05.2007,  23.05.2007,  27.04.2007,  03.05.2007,  yfirlit yfir færslur á gjaldeirisreikn. stefnda 16.04.2007 - 15.04.2009.",129,135,"129-135"]
[4,"2007-05-08","Viðauki við Lánasamning 0358-35-5042.",136,null,136]
[90,"2007-09-27","Lánssamningur  Rekstrarhúsa ehf. og Kaupþings banka hf. -  beiðni um útborgun - kaupnóta.",137,146,"137-146"]
[43,"2008-02-22","Bréf Kaupþings banka hf. - Huldu Pétursdóttir - um íslenskt bankabréf í EUR og USD.",147,148,"147-148"]
[44,"2008-04-21","Yfirlýsing Halldórs H. Jónssonar vegna kaupa stefnda á skuldabréfum 21 - 24 apríl 2008.",149,null,149]
[7,"2008-04-25","Handveðsyfirlýsing nr. 0358-63-1149.",150,153,"150-153"]
[8,"2008-05-14","Viðauki við handveðsyfirlýsingu nr 0358-63-953.",154,null,154]
[71,"2008-08-15","Yfirlit Kaupþings banka hf. síða nr. 1 um verðbréfaeign stefnda.",155,null,155]
[33,"2008-09-03","Ársreikningar stefnda fyrir árin 2007-2011.",156,215,"156-215"]
[102,"2008-09-15","Skilagreinar vegna vaxta af skuldabréfum í EUR og USD 25.05.2008",216,220,"216-220"]
[9,"2008-10-03","Viðauki við handveðsyfirlýsingu nr 0358-63-953.",221,null,221]
[10,"2008-10-03","Viðauki við Lánasamning 0358-35-5042.",222,null,222]
[11,"2008-10-09","Tölvupóstur stefnda.",223,null,223]
[46,"2008-10-09","Skuldajöfnun stefnda og Kaupþings banka hf. - Yfirlit.",224,null,{"$f":"IF(E37=\"\",D37,D37&\"-\"&E37)","v":224}]
[47,"2008-10-09","Staða lánasamnings nr. 0358-35-5042 - Yfirlit.",225,null,225]
[12,"2008-10-10","Tölvupóstur stefnda.",226,227,"226-227"]
[124,"2008-10-21","Ákvörðun FME um rástöfun eigna og skuldaKaupþings til nýja Kaupþings.",228,231,"228-231"]
[127,"2008-10-21","Yfirlýsingar um framsal kröfuréttinda",232,233,"232-233"]
[49,"2009-03-16","Bréf rekstrafélags Kaupþings banka hf. um greiðslu 58,7% af virði sjóðsins.",234,null,234]
[50,"2009-04-15","Kvittun Arion banka hf. fyrir greðslu af lánasamningi - kr. 100.844.072.",235,237,"235-237"]
[13,"2009-07-25","Tölvupóstur stefnanda.",238,null,238]
[123,"2009-07-25","Bréf slitastjórnar Kaupþings.",239,null,239]
[14,"2009-12-01","Kröfulýsing stefnda vegna USD skuldabréfakröfunnar.",240,244,"240-244"]
[15,"2009-12-01","Kröfulýsing stefnda vegna EUR skuldabréfakrafnanna og fundargerð 624. og 631. kröfuhafafundar Kaupþings 14. júlí 2011 og 9. ágúst 2011.",245,257,"245-257"]
[51,"2009-12-09","Bréf Arion banka hf. vegna blocking númer fyrir skuldabréf stefnda.",258,null,258]
[35,"2010-04-13","Yfirlit yfir LIBOR-vexti.",259,null,259]
[34,"2010-04-15","Yfrlit yfir stöðu lánsins á gjaldaga.",260,262,"260-262"]
[16,"2010-04-30","Afstöðubréf stefnanda vegna USD skuldabréfakröfunnar.",263,264,"263-264"]
[147,"2010-08-05","Gögn úr máli nr. S-206/2013, símtal Einars Pálma Sigmundssonar og Halldórs Friðriks Þorsteinssonar.",265,269,"265-269"]
[52,"2010-08-18","Neitun Arion banka hf. um útdrátt út tveim fundargerðum lánanefndar.",270,271,"270-271"]
[53,"2010-08-23","Neitum stefnanda um útdrátt úr tveim fundargerðum lánanefndar. ",272,null,272]
[17,"2010-11-16","Afstöðubréf stefnanda vegna EUR skuldabréfakrafanna.",273,null,273]
[131,"2011-06-30","Framsalssamningur, auk þýðingar",274,283,"274-283"]
[92,"2011-08-30","Bréf Landsbankanns um lækkun eftirstöðva viðskiptavinar um 55,37%.",284,null,284]
[76,"2011-10-10","Bréf stefnda til Arion banka hf. með beiðni um gögn.",285,null,285]
[22,"2011-10-12","Dómur Hæstaréttar í málinu nr.398/2011 ásam lýsingu á bandarískum lögum.","Sleppt",null,"Sleppt"]
[23,"2011-10-17","Bréf Arion Banka hf til stefnda.",286,null,286]
[91,"2011-11-02","Rekstrarvörur ehf. og Arion banki hf. - endurreikningur - lán 4026 og 6175 til lækkunar.",287,291,"287-291"]
[54,"2011-12-09","Bréf til stefnanda með kröfu um málsmeðferð ef lán er ekki staðfest greitt.",292,null,292]
[56,"2012-01-12","Bréf til stefnanda með beiðni um öll gögn varðandi sölu skuldabréfa USD og EUR .",293,null,293]
[55,"2012-01-25","Ítrekunarbréf til stefnanda um staðfestingu fullgreiðslu láns eða málaferli.",294,null,294]
[57,"2012-03-29","Kæra til sérstaks saksóknara um rannsókn á sölumeðferð skuldabréfa.",295,298,"295-298"]
[24,"2012-05-18","Innheimtuviðvörun stefnanda.",299,300,"299-300"]
[25,"2012-05-23","Tölvupóstar stefnda 23. maí, 24. maí og 31. maí 2012.",301,304,"301-304"]
[58,"2012-05-24","Bréf fjármálaeftirlitsins um fyrirspurn um starfsleyfi stefnanda.",305,null,305]
[59,"2012-05-31","Svar Fjármálaeftirlitsins um afturköllun starfsleyfis 19.07.2011",306,null,{"$f":"IF(E69=\"\",D69,D69&\"-\"&E69)","v":306}]
[60,"2012-05-31","Bréf stefnanda til Arion banka hf. með sérstökum mótmælum og aðvörun.",307,null,307]
[32,"2012-06-02","Yfilit yfir markaðsverð krafna frá Yorvik dags 2. júní og 21 júní.","Sleppt",null,"Sleppt"]
[129,"2012-06-05","Yfirlit yfr færslur á vörslusafni.",308,337,"308-337"]
[61,"2012-06-07","Bréf stefnanda með mótmælum vegna framsals Arion banka hf. á vörslusöfnum.",338,340,"338-340"]
[72,"2012-06-11","Yfirlit Arion banka hf. - verðbréfaeign sunduliðun 31.12.2011.",341,null,341]
[143,"2012-06-18","Gögn úr máli Héraðsdóms Reykjavíkur nr. S-206/2013 fyrstu tvær blaðsíður varðandi fyrirtöku Ingólfs Helgasonar og Rúnars.",342,345,"342-345"]
[26,"2012-06-19","Lögbannsbeiðni stefnda.",346,350,"346-350"]
[74,"2012-06-25","Yfirlit Arion banka hf. um innlánareikning 0301-22-000414 útprentun 25.06.2012.",353,null,353]
[62,"2012-06-25","Endurrit úr gerðarbók sýslumanns vegna fyrirtöku máls á Kaupþing hf.",351,352,"351-352"]
[65,"2012-06-28","Stefnandi hættir við málshöfðun á stefnda vegna peningamarkaðsinnlána.",356,null,356]
[73,"2012-06-28","Yfirlit Arion banka hf. - hreyfingar 01.01.2007 - 28.06.2012 - skuldabréf í EUR og USD.",357,null,357]
[75,"2012-06-28","Yfirlit Arion Banka hf. - vörsluyfirlit 01.01.2012 útprentun 28.06.2012",358,null,358]
[64,"2012-06-28","Endurrit úr gerðarbók sýslumanns þar sem lögbanni á stefnanda er hafnað.",354,355,"354-355"]
[66,"2012-06-29","Lögbannsbeiðni gegn Arion banka hf. ",359,null,359]
[67,"2012-07-06","Endurrit úr gerðarbók sýslumanns þar sem lögbanni á Arion banka hf. er hafnað.",364,365,"364-365"]
[68,"2012-07-25","Kæra á ákvörðun sérstaks saksóknara vegna söæumeðferðar skuldabréfa.",366,367,"366-367"]
[69,"2012-07-26","Bréf stefnanda til Árna Ármannsonar hrl.",368,369,"368-369"]
[63,"2012-07-27","Ítrekun til Arion banka hf. um að fá send öll skjöl o.fl.",370,371,"370-371"]
[27,"2012-08-21","Tilkynning stefnanda um innheimturástafanir 5. og 29. júní 2012 og kvittanir vegna þeirra.",372,378,"372-378"]
[28,"2012-08-24","Tölvupóstur stefnda.",379,380,"379-380"]
[70,"2012-08-24","Afstaða rískissaksóknara til kæru varðandi sölumeðferð skuldabréfa.",381,383,"381-383"]
[29,"2012-08-30","Tölvupóstur stefnda.",384,null,384]
[30,"2012-09-11","Kröfulýsing stefnda.",385,387,"385-387"]
[77,"2012-10-25","Beiðni um opinbera rannsókn sérstaks saksóknara vegna gruns um refsivert athæfi slitastjórnar.",388,395,"388-395"]
[31,"2012-12-17","Bréf stefnanda í tilefni af kröfulýsingu stefnda.",396,null,396]
[78,"2013-01-25","Bréf Arion banka hf. til stefnda - tilkynnt flokkun - fagfjárfestir.",397,399,"397-399"]
[79,"2013-02-08","Bréf stefnanda til Arion banka hf. þar sem mótmælt er skráningu - fagfjárfestir.",400,null,400]
[110,"2013-02-12","Tölvupóstsamskipti dags. 12.02, 29.04 og 02.06.2013",401,405,"401-405"]
[45,"2013-03-25","Kvittanir vegna kaupa stefnda á skuldabréfum ásamt bls. 1 í bréfi stefnanda.",406,413,"406-413"]
[80,"2013-04-23","Bréf stefnda til stefnanda.",414,null,414]
[81,"2013-06-05","Bréf stefnda til stefnanda.",415,null,415]
[82,"2013-06-05","Bréf stefnda til stefnanda með beiðni um gögn.",416,null,{"$f":"IF(E101=\"\",D101,D101&\"-\"&E101)","v":416}]
[83,"2013-06-27","Bréf regluvarðar til Arion banka hf. til stefnda með fylgipósti.",417,419,"417-419"]
[94,"2013-07-09","Bréf stefnanda til stefnda.",420,null,420]
[95,"2013-08-14","Bréf stefnda til ríkissaksóknara.",421,null,421]
[96,"2013-09-11","Afstaða rískissaksóknara til kæru vegna úttekta af bankareikningum.",422,427,"422-427"]
[1,"2013-09-30","Héraðsdómsstefna.",1,14,"1-14"]
[97,"2013-09-30","Skoðun Deloitte á gögnum tilheyrandi lántöku stefnda í apríl og maí 2007",428,486,"428-486"]
[98,"2013-10-01","Kröfulýsing stefnda á stefnanda - viðauki með skjalaskrá.",487,491,"487-491"]
[99,"2013-10-03","Bréf stefnda til Andra Andrasonar lögfr.",492,null,492]
[100,"2013-10-04","Bréf stefnda til stefnanda - krafa um málsmeðferð.",493,null,493]
[101,"2013-10-09","Bréf stefnda til stefnanda - réttaráhrif formlegra mótmæla.",494,null,494]
[104,"2013-11-12","Fundargerð 882. kröfuhafafundar stefnanda.",495,497,"495-497"]
[105,"2013-11-22","Bréf stefnanda.",498,null,498]
[36,"2014-01-23","Greinagerð stefnda í málinu nr. 4091/2013.",17,54,"17-54"]
[84,"2014-01-28","Skýrsla Rannsóknarnefndar Alþingis 2. hefti bls. 178 og 179.",499,501,"499-501"]
[85,"2014-01-28","Skýrsla Rannsóknarnefndar Alþingis 4. hefti bls. 27 - 35.",502,511,"502-511"]
[86,"2014-01-28","Skýrsla Rannsóknarnefndar Alþingis 4. hefti bls. 112 og 113.",512,514,"512-514"]
[87,"2014-01-28","Skýrsla Rannsóknarnefndar Alþingis 7. hefti bls. 258.",515,516,"515-516"]
[88,"2014-01-28","Augu Lýru - skáldsaga - Eva Joly og Eva Perrignon bls. 55.",517,518,"517-518"]
[106,"2014-04-23","Bréf stefnanda um beiðni um gögn.",519,527,"519-527"]
[107,"2014-05-05","Krafa stefnda um frestun máls.",528,null,528]
[108,"2014-08-04","Bókun stefnanda.",529,530,"529-530"]
[114,"2014-09-25","Greinagerð stefnanda í máli nr. X-158/2013.",262,589,"262-589"]
[111,"2014-09-25","Skýrsla PWC um stöðu lánasamnings.",531,561,"531-561"]
[125,"2014-09-25","Þýðing á hluta dskj. nr 111",590,595,"590-595"]
[133,"2014-12-09","Skýrsla Deloitte ",596,605,"596-605"]
[118,"2015-02-12","Dómur Hæstaréttar í málinu nr. 145/2014.","Sleppt",null,"Sleppt"]
[128,"2015-03-31","Yfirlit yfir færslur á bankareikningi",606,609,"606-609"]
[115,"2015-06-26","Dómur Héraðsdóms í máli nr. S-206/2013.","Sleppt",null,"Sleppt"]
[116,"2015-10-23","Beiðni sérstaks saksóknara ásamt kæru FME dags. 01.10.2009",610,663,"610-663"]
[119,"2015-10-29","Vitnaleiðslur í máli nr. X-158/2013.",664,670,"664-670"]
[122,"2016-04-29","Dómur hæstaréttar í máli nr. 225/2016.",671,714,"671-714"]
[120,"2016-06-09","Bókun stefnanda.",768,null,{"$f":"IF(E133=\"\",D133,D133&\"-\"&E133)","v":768}]
[117,"2016-06-09","Úr skýrslu sérstaks saksóknanra vegna kæru FME.",715,767,"715-767"]
[121,"2016-06-09","Hlutafélagaskrá.",769,770,"769-770"]
[142,"2016-08-10","Bréf héraðssaksóknara ásamt gögnum úr máli Héraðsdóms Reykjavíkur í málinu nr. S-206/2013 ákæra ogfl.",771,1031,"771-1031"]
[145,"2016-08-16","Sýnishorn af bréfaskriftum vegna greiðsæu málskostnaðar í x-málinu",1032,1033,"1032-1033"]
[144,"2016-10-06","Hrd. nr. 498/2015 Ákæruvaldið gegn Hreiðari Má og fl.",1034,1135,"1034-1135"]
[132,"2016-10-07","Skýrsla Deloitte ",1136,1139,"1136-1139"]
[137,"2016-10-13","Bókun stefnda varðandi áskorun til stefnada um framlagningu gagna.",1140,null,1140]
[138,"2016-10-13","Bókun stefnda varðandi áskorun til stefnada um framlagningu gagna.",1141,null,1141]
[139,"2016-10-13","Bókun stefnda varðandi áskorun til stefnada um framlagningu gagna.",1142,null,1142]
[140,"2016-10-13","Bókun stefnda varðandi áskorun til stefnada um framlagningu gagna.",1143,null,1143]
[141,"2016-10-13","Bókun stefnda varðandi tilhögun málflutnings.",1144,null,1144]
[146,"2016-10-25","Bókun stefnanda.",1145,null,1145]
[37,null,"Skjalaskrá.",null,null,0]
[48,null,"Viðauki 6 við saming: \"Total exposure\" (ISK); 3.072 m.kr. \"transfer price (ISK): 1.064 m.kr. \".",1146,null,1146]
[148,null,"Þingbók",1147,1158,"1147-1158"]
[2,null,"Skjalaskrá.",15,16,"15-16"]
[113,null,"Gögn tengd vaxtagreiðslum vegna USD skuldabréfakröfunnar.","Sleppt",null,"Sleppt"]
[126,null,"Þýðing á dskj. nr. 113","Sleppt",null,"Sleppt"]
[136,null,"Þýðing á bókunum Privarett II og Obligarionsretten, Almindelig del.","Sleppt",null,"Sleppt"]
[null,"2017-01-30","Skýrslutökur í máli E-4091/2013",1159,1162,{"$f":"IF(E153=\"\",D153,D153&\"-\"&E153)","v":"1159-1162"}]
[null,"2017-02-24","Dómur Héraðsdóms í máli nr. E-4091/2013",1163,1188,"1163-1188"]